[Event "GER-chT Youth Countries 2020"]
[Site "Berlin"]
[Date "2020.10.02"]
[Round "5"]
[White "Sommer, Justus"]
[Black "Kempe, Caius Emilian"]
[Result "0-1"]
[ECO "B30"]
[WhiteElo "1845"]
[BlackElo "1910"]
[Annotator "ChessBase"]
[PlyCount "96"]
[EventDate "2020.09.30"]
[EventType "team-tourn"]
[EventRounds "7"]
[EventCountry "GER"]
[SourceTitle "playchess.com"]
[Source "ChessBase"]
[SourceQuality "1"]
[TimeControl "30/5400+30:0"]

1. e4 {[%emt 0:00:00]} c5 {[%emt 0:00:00]} 2. Nf3 {[%emt 0:00:00]} Nc6 {[%emt 0:00:00]} 3. Bb5 {[%emt 0:00:00]} d6 {[%emt 0:00:00]} 4. d4 {[%emt 0:00:10]} cxd4 {[%emt 0:00:00]} 5. Nxd4 {[%emt 0:00:08]} Bd7 {[%emt 0:00:13]} 6. O-O {[%emt 0:00:40]} g6 {[%emt 0:00:42]} 7. Nc3 {[%emt 0:00:18]} Bg7 {[%emt 0:00:10]} 8. Be3 {[%emt 0:00:11]} Nf6 {[%emt 0:00:23]} 9. h3 {[%emt 0:01:30]} O-O {[%emt 0:00:31]} 10. Nxc6 {[%emt 0:02:10]} bxc6 {[%emt 0:00:51]} 11. Ba4 {[%emt 0:00:50]} Qa5 {[%emt 0:01:29]} 12. Bb3 {[%emt 0:00:14]} c5 {[%emt 0:00:39]} 13. Qe2 {[%emt 0:06:07]} Qb4 {[%emt 0:09:15]} 14. Bd2 {[%emt 0:04:55]} Qb7 {[%emt 0:01:57]} 15. Nd5 {[%emt 0:02:44]} e6 {[%emt 0:11:12]} 16. Nxf6+ {[%emt 0:02:58]} Bxf6 {[%emt 0:00:02]} 17. Qf3 {[%emt 0:02:48]} Bg7 {[%emt 0:01:34]} 18. Rfe1 {[%emt 0:02:38]} Bc6 {[%emt 0:01:28]} 19. c3 {[%emt 0:03:06]} a5 {[%emt 0:01:34]} 20. Rab1 {[%emt 0:01:38]} d5 {[%emt 0:06:18]} 21. exd5 {[%emt 0:05:57]} exd5 {[%emt 0:00:37]} 22. Qg3 {[%emt 0:01:54]} d4 {[%emt 0:04:00]} 23. Bf4 {[%emt 0:01:49]} Rfe8 {[%emt 0:01:30]} 24. Be5 {[%emt 0:04:20]} Be4 {[%emt 0:05:03]} 25. f4 {[%emt 0:04:30]} Bxb1 {[%emt 0:00:32]} 26. Rxb1 {[%emt 0:00:06]} a4 {[%emt 0:01:23]} 27. Bc2 {[%emt 0:00:20]} Bxe5 {[%emt 0:00:16]} 28. fxe5 {[%emt 0:00:05]} Qd5 {[%emt 0:00:27]} 29. Re1 {[%emt 0:00:30]} Qxa2 {[%emt 0:01:04]} 30. cxd4 {[%emt 0:00:15]} cxd4 {[%emt 0:00:09]} 31. Be4 {[%emt 1:30:21]} Rac8 {[%emt 1:33:29]} 32. Qf2 {[%emt 0:01:02]} Rxe5 {[%emt 0:02:42]} 33. Bb7 {[%emt 0:02:12]} Rxe1+ {[%emt 0:01:10]} 34. Qxe1 {[%emt 0:00:11]} Rf8 {[%emt 0:02:13]} 35. Qb4 {[%emt 0:00:43]} Qb1+ {[%emt 0:00:38]} 36. Kh2 {[%emt 0:00:08]} d3 {[%emt 0:01:12]} 37. Be4 {[%emt 0:00:31]} Qd1 {[%emt 0:00:32]} 38. Bf3 {[%emt 0:00:20]} Qb3 {[%emt 0:01:23]} 39. Qd4 {[%emt 0:00:16]} Rb8 {[%emt 0:01:42]} 40. Bd5 {[%emt 0:00:27]} Qxb2 {[%emt 0:02:11]} 41. Qxd3 {[%emt 0:00:15]} a3 {[%emt 0:00:30]} 42. Qc4 {[%emt 0:00:40]} Qe5+ {[%emt 0:00:44]} 43. g3 {[%emt 0:00:27]} Rb2+ {[%emt 0:00:28]} 44. Bg2 {[%emt 0:00:08]} Qe2 {[%emt 0:01:14]} 45. Qc8+ {[%emt 0:00:10]} Kg7 {[%emt 0:00:07]} 46. Qc3+ {[%emt 0:00:06]} Kh6 {[%emt 0:00:15]} 47. Qc1+ {[%emt 0:00:04]} Qd2 {[%emt 0:00:37]} 48. Qf1 {[%emt 0:00:14]} Qxg2+ {[%emt 0:00:12]} 0-1

[Event "GER-chT Youth Countries 2020"]
[Site "Berlin"]
[Date "2020.10.02"]
[Round "5"]
[White "Rudolph, Eva"]
[Black "Zhou, Lepu Coco"]
[Result "0-1"]
[ECO "C44"]
[WhiteElo "1836"]
[BlackElo "1872"]
[Annotator "NA"]
[PlyCount "50"]
[EventDate "2020.09.30"]
[EventType "team-tourn"]
[EventRounds "7"]
[EventCountry "GER"]
[SourceTitle "playchess.com"]
[Source "ChessBase"]
[SourceQuality "1"]
[TimeControl "30/5400+30:0"]

1. e4 {[%emt 0:00:00]} e5 {[%emt 0:00:00]} 2. Nf3 {[%emt 0:00:00]} Nc6 {[%emt 0:00:00]} 3. d4 {[%emt 0:00:05]} exd4 {[%emt 0:00:00]} 4. Nxd4 {[%emt 0:00:09]} Nf6 {[%emt 0:00:00]} 5. Nc3 {[%emt 0:00:28]} Bb4 {[%emt 0:00:15]} 6. Nxc6 {[%emt 0:00:11]} bxc6 {[%emt 0:00:05]} 7. Bd3 {[%emt 0:00:11]} d5 {[%emt 0:00:06]} 8. Bd2 {[%emt 0:00:26]} O-O {[%emt 0:02:08]} 9. O-O {[%emt 0:01:35]} Be6 {[%emt 0:20:42]} 10. Nxd5 {[%emt 0:09:38]} Bxd2 {[%emt 0:06:49]} 11. Nxf6+ {[%emt 0:00:57]} Qxf6 {[%emt 0:00:12]} 12. Qxd2 {[%emt 0:00:46]} Qxb2 {[%emt 0:00:25]} 13. Rab1 {[%emt 0:12:52]} Qd4 {[%emt 0:03:49]} 14. Qa5 {[%emt 0:03:16]} c5 {[%emt 0:01:47]} 15. Rfd1 {[%emt 0:11:23]} c4 {[%emt 0:01:26]} 16. Be2 {[%emt 0:01:20]} Qf6 {[%emt 0:02:15]} 17. Rb7 {[%emt 0:06:50]} Rad8 {[%emt 0:04:03]} 18. Rdb1 {[%emt 0:24:43]} Qf4 {[%emt 0:06:00]} 19. Bf3 {[%emt 0:11:16]} Rd2 {[%emt 0:02:53]} 20. c3 {[%emt 0:00:51]} Rc2 {[%emt 0:03:34]} 21. h3 {[%emt 0:01:30]} Qd2 {[%emt 0:04:06]} 22. Qxa7 {[%emt 0:03:12]} Rxa2 {[%emt 0:11:39]} 23. Qd4 {[%emt 0:00:49]} Qxd4 {[%emt 0:07:18]} 24. cxd4 {[%emt 0:00:02]} c6 {[%emt 0:00:39]} 25. Rc1 {[%emt 0:01:44]} f5 {[%emt 0:04:12]} 0-1

[Event "GER-chT Youth Countries 2020"]
[Site "Berlin"]
[Date "2020.10.02"]
[Round "5"]
[White "Kluehs, Gustaf"]
[Black "Bashylina, Luisa"]
[Result "1/2-1/2"]
[ECO "A05"]
[WhiteElo "1827"]
[BlackElo "2005"]
[Annotator "ChessBase"]
[PlyCount "63"]
[EventDate "2020.09.30"]
[EventType "team-tourn"]
[EventRounds "7"]
[EventCountry "GER"]
[SourceTitle "playchess.com"]
[Source "ChessBase"]
[SourceQuality "1"]
[TimeControl "30/5400+30:0"]

1. Nf3 {[%emt 0:00:00]} Nf6 {[%emt 0:00:00]} 2. g3 {[%emt 0:00:00]} d5 {[%emt 0:00:00]} 3. Bg2 {[%emt 0:00:00]} Bf5 {[%emt 0:00:00]} 4. b3 {[%emt 0:02:37]} h6 {[%emt 0:00:33]} 5. Ba3 {[%emt 0:04:04]} Nbd7 {[%emt 0:09:50]} 6. c4 {[%emt 0:05:26]} e6 {[%emt 0:02:18]} 7. Bxf8 {[%emt 0:00:43]} Nxf8 {[%emt 0:00:10]} 8. O-O {[%emt 0:03:38]} N8d7 {[%emt 0:01:01]} 9. Nc3 {[%emt 0:02:31]} c6 {[%emt 0:00:36]} 10. cxd5 {[%emt 0:02:41]} exd5 {[%emt 0:00:51]} 11. d3 {[%emt 0:07:17]} O-O {[%emt 0:00:31]} 12. b4 {[%emt 0:03:33]} Nb6 {[%emt 0:07:01]} 13. Na4 {[%emt 0:10:16]} Re8 {[%emt 0:12:03]} 14. Nc5 {[%emt 0:07:57]} Qe7 {[%emt 0:03:15]} 15. e3 {[%emt 0:00:13]} Nc8 {[%emt 0:05:30]} 16. Qd2 {[%emt 0:03:19]} Nd6 {[%emt 0:03:42]} 17. Nd4 {[%emt 0:02:43]} Bh7 {[%emt 0:00:54]} 18. Rfc1 {[%emt 0:03:02]} Nd7 {[%emt 0:05:00]} 19. Nxd7 {[%emt 0:02:33]} Qxd7 {[%emt 0:01:04]} 20. Rab1 {[%emt 0:08:56]} Rac8 {[%emt 0:01:32]} 21. Rb3 {[%emt 0:04:11]} Rc7 {[%emt 0:08:51]} 22. Rbc3 {[%emt 0:00:22]} Rec8 {[%emt 0:00:38]} 23. h4 {[%emt 0:04:45]} a6 {[%emt 0:04:43]} 24. Kh2 {[%emt 0:04:05]} Nb5 {[%emt 0:02:53]} 25. Nxb5 {[%emt 0:01:13]} axb5 {[%emt 0:00:26]} 26. d4 {[%emt 0:00:14]} Ra8 {[%emt 0:02:45]} 27. Bf1 {[%emt 0:00:39]} Rcc8 {[%emt 0:01:36]} 28. a3 {[%emt 0:01:21]} Re8 {[%emt 0:02:53]} 29. Bd3 {[%emt 0:03:18]} Ra4 {[%emt 0:02:31]} 30. Bxh7+ {[%emt 0:00:17]} Kxh7 {[%emt 0:00:05]} 31. Qd3+ {[%emt 1:30:54]} Kg8 {[%emt 1:30:17]} 32. Rb3 {[%emt 0:00:32]} 1/2-1/2

[Event "GER-chT Youth Countries 2020"]
[Site "Berlin"]
[Date "2020.10.02"]
[Round "5"]
[White "Yue, Qizhou"]
[Black "Werner, Rosalie"]
[Result "0-1"]
[ECO "C05"]
[WhiteElo "1775"]
[BlackElo "1688"]
[Annotator "NA"]
[PlyCount "108"]
[EventDate "2020.09.30"]
[EventType "team-tourn"]
[EventRounds "7"]
[EventCountry "GER"]
[SourceTitle "playchess.com"]
[Source "ChessBase"]
[SourceQuality "1"]
[TimeControl "30/5400+30:0"]

1. e4 {[%emt 0:00:00]} e6 {[%emt 0:00:00]} 2. d4 {[%emt 0:00:00]} d5 {[%emt 0:00:00]} 3. Nd2 {[%emt 0:00:00]} Nf6 {[%emt 0:00:10]} 4. e5 {[%emt 0:00:00]} Nfd7 {[%emt 0:00:00]} 5. f4 {[%emt 0:00:00]} c5 {[%emt 0:00:00]} 6. c3 {[%emt 0:00:05]} b6 {[%emt 0:00:47]} 7. Ngf3 {[%emt 0:08:19]} Be7 {[%emt 0:00:11]} 8. Bd3 {[%emt 0:02:18]} Ba6 {[%emt 0:00:07]} 9. Bxa6 {[%emt 0:01:24]} Nxa6 {[%emt 0:15:52]} 10. Qe2 {[%emt 0:06:58]} Nc7 {[%emt 0:14:13]} 11. h4 {[%emt 0:06:58]} h5 {[%emt 0:03:58]} 12. Ng5 {[%emt 0:14:45]} g6 {[%emt 0:09:06]} 13. Nf1 {[%emt 0:02:01]} Kf8 {[%emt 0:02:16]} 14. Ne3 {[%emt 0:02:50]} Kg7 {[%emt 0:03:09]} 15. Bd2 {[%emt 0:05:23]} Nf8 {[%emt 0:05:25]} 16. Kf2 {[%emt 0:00:37]} f5 {[%emt 0:00:28]} 17. exf6+ {[%emt 0:02:04]} Bxf6 {[%emt 0:04:26]} 18. Nf3 {[%emt 0:11:11]} c4 {[%emt 0:05:03]} 19. Nf1 {[%emt 0:01:10]} Nd7 {[%emt 0:03:06]} 20. Ng3 {[%emt 0:05:04]} Qf8 {[%emt 0:01:28]} 21. b3 {[%emt 0:05:28]} b5 {[%emt 0:03:59]} 22. Rhe1 {[%emt 0:05:06]} Qd6 {[%emt 0:01:25]} 23. Kg1 {[%emt 0:00:29]} Rhe8 {[%emt 0:06:20]} 24. Kh2 {[%emt 0:02:09]} Nf8 {[%emt 0:03:08]} 25. Ng5 {[%emt 0:02:15]} Nh7 {[%emt 0:02:37]} 26. Qf3 {[%emt 0:01:37]} Qd7 {[%emt 0:01:22]} 27. Re2 {[%emt 0:01:55]} Be7 {[%emt 0:00:22]} 28. Rae1 {[%emt 0:05:15]} Bd6 {[%emt 0:00:56]} 29. Qe3 {[%emt 0:00:46]} Nf6 {[%emt 0:02:55]} 30. Qf3 {[%emt 0:00:28]} Re7 {[%emt 0:01:03]} 31. Kh1 {[%emt 1:31:06]} Ng4 {[%emt 1:33:24]} 32. Nf1 {[%emt 0:01:02]} Rf8 {[%emt 0:02:05]} 33. Nh2 {[%emt 0:01:10]} Nh6 34. g4 {[%emt 0:00:10]} hxg4 {[%emt 0:02:26]} 35. Nxg4 {[%emt 0:02:57]} Nf5 {[%emt 0:00:36]} 36. Qf2 {[%emt 0:00:09]} Rh8 {[%emt 0:01:50]} 37. Nf3 {[%emt 0:00:44]} Qd8 {[%emt 0:01:25]} 38. Kg2 {[%emt 0:01:20]} Rf7 {[%emt 0:00:52]} 39. Rh1 {[%emt 0:00:44]} Rh5 {[%emt 0:00:29]} 40. Ng5 {[%emt 0:00:00]} Re7 {[%emt 0:00:00]} 41. Ne3 {[%emt 0:00:00]} Nh6 {[%emt 0:00:00]} 42. Rhe1 {[%emt 0:00:00]} Qf8 {[%emt 0:00:00]} 43. Nf1 {[%emt 0:00:00]} Nf5 44. Nxe6+ {[%emt 0:00:00]} Nxe6 {[%emt 0:00:00]} 45. Rxe6 {[%emt 0:00:00]} Nxh4+ {[%emt 0:00:00]} 46. Kg1 {[%emt 0:00:00]} Rxe6 {[%emt 0:00:00]} 47. Rxe6 {[%emt 0:00:00]} Qf5 {[%emt 0:00:00]} 48. Rxd6 {[%emt 0:00:00]} Qg4+ {[%emt 0:00:00]} 49. Ng3 {[%emt 0:00:00]} Nf3+ {[%emt 0:00:15]} 50. Kf1 {[%emt 0:01:16]} Rh2 51. Qxh2 {[%emt 0:00:21]} Nxh2+ {[%emt 0:00:39]} 52. Kg2 {[%emt 0:00:30]} Nf3 {[%emt 0:00:30]} 53. Bc1 {[%emt 0:00:30]} Ne1+ {[%emt 0:00:30]} 54. Kf2 {[%emt 0:00:30]} Nd3+ {[%emt 0:00:30]} 0-1

[Event "GER-chT Youth Countries 2020"]
[Site "Berlin"]
[Date "2020.10.02"]
[Round "5"]
[White "Hagenbeck-Huebert, Ben"]
[Black "Mundt, Alexandra"]
[Result "1-0"]
[ECO "B06"]
[WhiteElo "1749"]
[BlackElo "1786"]
[Annotator "NA"]
[PlyCount "65"]
[EventDate "2020.09.30"]
[EventType "team-tourn"]
[EventRounds "7"]
[EventCountry "GER"]
[SourceTitle "playchess.com"]
[Source "ChessBase"]
[SourceQuality "1"]
[TimeControl "30/5400+30:0"]

1. e4 {[%emt 0:00:00]} g6 {[%emt 0:00:00]} 2. d4 {[%emt 0:00:00]} Bg7 {[%emt 0:00:00]} 3. Nf3 {[%emt 0:00:06]} d6 {[%emt 0:00:00]} 4. h3 {[%emt 0:01:06]} Nd7 {[%emt 0:00:00]} 5. Nc3 {[%emt 0:01:53]} e5 {[%emt 0:04:30]} 6. dxe5 {[%emt 0:03:24]} Nxe5 {[%emt 0:00:42]} 7. Nxe5 {[%emt 0:01:10]} Bxe5 {[%emt 0:00:07]} 8. Bc4 {[%emt 0:03:44]} Be6 {[%emt 0:11:17]} 9. Bb3 {[%emt 0:01:56]} Qd7 {[%emt 0:05:25]} 10. Be3 {[%emt 0:05:55]} Ne7 {[%emt 0:11:28]} 11. f4 {[%emt 0:07:52]} Bg7 {[%emt 0:00:57]} 12. Qd3 {[%emt 0:04:14]} a6 {[%emt 0:13:06]} 13. O-O-O {[%emt 0:04:03]} Bxb3 {[%emt 0:04:38]} 14. axb3 {[%emt 0:00:53]} O-O-O {[%emt 0:00:46]} 15. Qc4 {[%emt 0:11:04]} Nc6 {[%emt 0:04:35]} 16. Nd5 {[%emt 0:03:04]} Kb8 {[%emt 0:03:28]} 17. b4 {[%emt 0:06:37]} Rhe8 {[%emt 0:07:45]} 18. Rhe1 {[%emt 0:09:14]} Na7 {[%emt 0:10:45]} 19. Bxa7+ {[%emt 0:02:49]} Kxa7 {[%emt 0:00:07]} 20. Qxc7 {[%emt 0:01:39]} Qa4 {[%emt 0:02:11]} 21. Qb6+ {[%emt 0:01:00]} Kb8 {[%emt 0:00:15]} 22. Qa5 {[%emt 0:01:16]} Qxa5 {[%emt 0:06:33]} 23. bxa5 {[%emt 0:00:16]} Rc8 {[%emt 0:00:16]} 24. Nb6 {[%emt 0:05:56]} Rc6 {[%emt 0:01:52]} 25. Rd5 {[%emt 0:08:52]} Re7 {[%emt 0:04:06]} 26. g4 Bh6 27. g5 {[%emt 0:01:15]} Bg7 {[%emt 0:00:49]} 28. h4 {[%emt 0:02:04]} f5 {[%emt 0:01:47]} 29. gxf6 {[%emt 0:03:13]} Bxf6 {[%emt 0:03:06]} 30. h5 {[%emt 0:01:26]} Bh4 31. Rh1 Bg3 {[%emt 1:30:44]} 32. hxg6 {[%emt 1:30:50]} Bxf4+ {[%emt 0:00:06]} 33. Kb1 1-0

[Event "GER-chT Youth Countries 2020"]
[Site "Berlin"]
[Date "2020.10.02"]
[Round "5"]
[White "Pohle, Saskia"]
[Black "Braeutigam, Katerina"]
[Result "0-1"]
[ECO "B10"]
[WhiteElo "1749"]
[BlackElo "1744"]
[Annotator "NA"]
[PlyCount "84"]
[EventDate "2020.09.30"]
[EventType "team-tourn"]
[EventRounds "7"]
[EventCountry "GER"]
[SourceTitle "playchess.com"]
[Source "ChessBase"]
[SourceQuality "1"]
[TimeControl "30/5400+30:0"]

1. e4 {[%emt 0:00:00]} c6 {[%emt 0:00:00]} 2. Nc3 {[%emt 0:00:00]} d5 {[%emt 0:00:00]} 3. Nf3 {[%emt 0:00:00]} g6 {[%emt 0:00:00]} 4. d4 {[%emt 0:02:34]} Bg7 {[%emt 0:00:04]} 5. e5 {[%emt 0:00:33]} Bg4 {[%emt 0:01:13]} 6. Be2 {[%emt 0:01:54]} e6 {[%emt 0:05:13]} 7. O-O {[%emt 0:02:51]} Nd7 {[%emt 0:01:18]} 8. h3 {[%emt 0:03:23]} Bxf3 {[%emt 0:00:24]} 9. Bxf3 {[%emt 0:00:08]} h6 {[%emt 0:02:42]} 10. Be3 {[%emt 0:04:37]} Ne7 {[%emt 0:00:22]} 11. Qd2 {[%emt 0:03:30]} a6 {[%emt 0:01:48]} 12. Ne2 {[%emt 0:03:42]} Nf5 {[%emt 0:01:49]} 13. c3 {[%emt 0:02:00]} O-O {[%emt 0:02:15]} 14. Bf4 {[%emt 0:00:40]} Kh7 {[%emt 0:00:34]} 15. Ng3 {[%emt 0:01:24]} Nxg3 {[%emt 0:05:32]} 16. Bxg3 {[%emt 0:00:09]} c5 {[%emt 0:01:03]} 17. Be2 {[%emt 0:04:46]} Qa5 {[%emt 0:10:00]} 18. Qe3 {[%emt 0:07:58]} Rac8 {[%emt 0:03:08]} 19. Bd3 {[%emt 0:00:57]} Nb6 {[%emt 0:02:46]} 20. h4 {[%emt 0:04:46]} h5 {[%emt 0:03:32]} 21. Bf4 {[%emt 0:01:10]} cxd4 {[%emt 0:02:03]} 22. cxd4 {[%emt 0:00:10]} Nc4 {[%emt 0:01:48]} 23. Qe2 {[%emt 0:00:14]} Kg8 {[%emt 0:01:27]} 24. b3 {[%emt 0:02:07]} Na3 {[%emt 0:02:34]} 25. g4 {[%emt 0:06:41]} hxg4 {[%emt 0:02:08]} 26. Qxg4 {[%emt 0:00:06]} Qc3 {[%emt 0:01:38]} 27. Rad1 {[%emt 0:01:16]} Rfe8 {[%emt 0:20:15]} 28. h5 {[%emt 0:02:19]} gxh5 {[%emt 0:02:03]} 29. Qxh5 {[%emt 0:00:19]} Kf8 {[%emt 0:00:33]} 30. Bg5 {[%emt 0:02:30]} Qxd4 {[%emt 0:03:02]} 31. Bb5 {[%emt 1:32:41]} Qxe5 {[%emt 1:31:32]} 32. Bxe8 {[%emt 0:00:12]} Rxe8 {[%emt 0:02:02]} 33. Qh4 {[%emt 0:02:49]} Nb5 {[%emt 0:08:30]} 34. Rfe1 {[%emt 0:02:36]} Qf5 {[%emt 0:02:47]} 35. a4 {[%emt 0:07:17]} Nd4 {[%emt 0:01:56]} 36. Rxd4 {[%emt 0:06:10]} Bxd4 {[%emt 0:00:43]} 37. Qxd4 {[%emt 0:00:16]} Qxg5+ {[%emt 0:00:12]} 38. Kf1 {[%emt 0:00:08]} Rd8 {[%emt 0:08:28]} 39. Re3 {[%emt 0:01:09]} Rc8 {[%emt 0:01:11]} 40. Rg3 {[%emt 0:00:34]} Qh6 {[%emt 0:00:52]} 41. Qb4+ {[%emt 0:00:58]} Ke8 {[%emt 0:00:00]} 42. Qxb7 {[%emt 0:00:00]} Qh1+ {[%emt 0:00:00]} 0-1

[Event "GER-chT Youth Countries 2020"]
[Site "Berlin"]
[Date "2020.10.02"]
[Round "5"]
[White "Nitsche, Nikolai"]
[Black "Besou, Hussain"]
[Result "1/2-1/2"]
[ECO "A00"]
[WhiteElo "1721"]
[BlackElo "1825"]
[Annotator "NA"]
[PlyCount "65"]
[EventDate "2020.09.30"]
[EventType "team-tourn"]
[EventRounds "7"]
[EventCountry "GER"]
[SourceTitle "playchess.com"]
[Source "ChessBase"]
[SourceQuality "1"]
[TimeControl "30/5400+30:0"]

1. g3 {[%emt 0:00:23]} Nf6 {[%emt 0:00:12]} 2. Bg2 {[%emt 0:00:59]} g6 {[%emt 0:00:21]} 3. Nf3 {[%emt 0:01:22]} Bg7 {[%emt 0:00:18]} 4. O-O {[%emt 0:00:22]} O-O {[%emt 0:00:08]} 5. d3 {[%emt 0:00:43]} d5 {[%emt 0:02:18]} 6. c3 {[%emt 0:02:15]} c6 {[%emt 0:00:34]} 7. Bg5 {[%emt 0:00:00]} h6 {[%emt 0:00:10]} 8. Bxf6 {[%emt 0:00:09]} Bxf6 {[%emt 0:00:07]} 9. Nbd2 {[%emt 0:00:44]} e5 {[%emt 0:00:23]} 10. e4 {[%emt 0:00:31]} Be6 {[%emt 0:00:31]} 11. d4 {[%emt 0:01:00]} exd4 {[%emt 0:00:52]} 12. Nxd4 {[%emt 0:00:46]} Bxd4 {[%emt 0:00:11]} 13. cxd4 {[%emt 0:00:13]} dxe4 {[%emt 0:00:04]} 14. Nxe4 {[%emt 0:00:15]} Nd7 {[%emt 0:00:39]} 15. Qd2 {[%emt 0:02:27]} Kg7 {[%emt 0:00:18]} 16. Rfe1 {[%emt 0:00:34]} Bd5 {[%emt 0:03:29]} 17. f4 {[%emt 0:04:17]} Bxe4 {[%emt 0:00:51]} 18. Bxe4 {[%emt 0:00:14]} Nf6 {[%emt 0:00:55]} 19. Bc2 {[%emt 0:01:15]} Qd6 {[%emt 0:00:40]} 20. f5 {[%emt 0:00:44]} g5 {[%emt 0:00:50]} 21. Rad1 {[%emt 0:01:47]} Rad8 {[%emt 0:00:25]} 22. Qa5 {[%emt 0:02:00]} Qb8 {[%emt 0:06:48]} 23. Re5 {[%emt 0:11:58]} Rd7 {[%emt 0:09:57]} 24. Bb3 {[%emt 0:09:10]} Rfd8 {[%emt 0:01:28]} 25. Qc5 {[%emt 0:03:32]} a6 {[%emt 0:06:44]} 26. Rde1 {[%emt 0:09:15]} Qc7 {[%emt 0:10:39]} 27. Re7 {[%emt 0:16:56]} Rxe7 {[%emt 0:01:32]} 28. Rxe7 {[%emt 0:00:06]} Rd7 {[%emt 0:00:04]} 29. Rxd7 {[%emt 0:00:04]} Qxd7 {[%emt 0:00:13]} 30. Qe5 {[%emt 0:03:11]} Qd8 {[%emt 0:02:32]} 31. h4 {[%emt 1:30:35]} Kf8 {[%emt 1:35:22]} 32. hxg5 {[%emt 0:03:06]} hxg5 {[%emt 0:00:07]} 33. Kg2 {[%emt 0:00:35]} 1/2-1/2

[Event "GER-chT Youth Countries 2020"]
[Site "Berlin"]
[Date "2020.10.02"]
[Round "5"]
[White "Zimmer, Luca"]
[Black "Weidenhoefer, Max"]
[Result "0-1"]
[ECO "B13"]
[WhiteElo "1690"]
[BlackElo "1897"]
[Annotator "NA"]
[PlyCount "59"]
[EventDate "2020.09.30"]
[EventType "team-tourn"]
[EventRounds "7"]
[EventCountry "GER"]
[SourceTitle "playchess.com"]
[Source "ChessBase"]
[SourceQuality "1"]
[TimeControl "30/5400+30:0"]

1. e4 {[%emt 0:00:00]} c6 {[%emt 0:00:00]} 2. d4 {[%emt 0:00:00]} d5 {[%emt 0:00:00]} 3. exd5 {[%emt 0:00:00]} cxd5 {[%emt 0:00:00]} 4. Bd3 {[%emt 0:00:00]} Nf6 {[%emt 0:00:00]} 5. c3 {[%emt 0:00:02]} Nc6 {[%emt 0:00:18]} 6. Bf4 {[%emt 0:00:05]} Bg4 {[%emt 0:00:15]} 7. Qb3 {[%emt 0:00:05]} Qd7 {[%emt 0:00:09]} 8. Nd2 {[%emt 0:01:04]} e6 {[%emt 0:00:12]} 9. Ngf3 {[%emt 0:00:16]} Bd6 {[%emt 0:00:21]} 10. Bxd6 {[%emt 0:01:45]} Qxd6 {[%emt 0:00:01]} 11. O-O {[%emt 0:00:10]} O-O {[%emt 0:00:27]} 12. Rae1 {[%emt 0:01:03]} a6 {[%emt 0:04:18]} 13. Ne5 {[%emt 0:06:23]} Rab8 {[%emt 0:07:09]} 14. f4 {[%emt 0:04:15]} b5 {[%emt 0:09:40]} 15. Ndf3 {[%emt 0:02:46]} Bxf3 {[%emt 0:05:09]} 16. Rxf3 {[%emt 0:01:20]} Rfc8 {[%emt 0:16:45]} 17. f5 {[%emt 0:08:51]} exf5 {[%emt 0:04:26]} 18. Bxf5 {[%emt 0:00:30]} Rc7 {[%emt 0:05:30]} 19. Nxc6 {[%emt 0:29:25]} Rxc6 {[%emt 0:03:03]} 20. Qd1 {[%emt 0:01:10]} b4 {[%emt 0:03:52]} 21. cxb4 {[%emt 0:01:23]} g6 {[%emt 0:11:00]} 22. Be6 {[%emt 0:26:51]} Qd8 {[%emt 0:05:52]} 23. Bh3 {[%emt 0:00:22]} Rxb4 {[%emt 0:01:27]} 24. Rb3 {[%emt 0:05:08]} Rcc4 {[%emt 0:04:56]} 25. Rxb4 {[%emt 0:02:12]} Rxb4 {[%emt 0:00:00]} 26. b3 {[%emt 0:02:09]} Qb6 {[%emt 0:02:38]} 27. Kh1 {[%emt 0:02:17]} Rxd4 {[%emt 0:00:28]} 28. Qc2 {[%emt 0:01:09]} Ne4 {[%emt 0:00:53]} 29. g3 {[%emt 0:02:57]} Rd2 {[%emt 0:00:31]} 30. Qc8+ {[%emt 0:00:44]} 0-1

[Event "GER-chT Youth Countries 2020"]
[Site "Berlin"]
[Date "2020.10.02"]
[Round "5"]
[White "Trunz, Michelle"]
[Black "Lorenz, Veronika"]
[Result "1-0"]
[ECO "D32"]
[WhiteElo "1662"]
[BlackElo "1273"]
[Annotator "NA"]
[PlyCount "101"]
[EventDate "2020.09.30"]
[EventType "team-tourn"]
[EventRounds "7"]
[EventCountry "GER"]
[SourceTitle "playchess.com"]
[Source "ChessBase"]
[SourceQuality "1"]
[TimeControl "30/5400+30:0"]

1. d4 {[%emt 0:00:00]} d5 {[%emt 0:00:00]} 2. c4 {[%emt 0:00:00]} e6 {[%emt 0:00:00]} 3. Nc3 {[%emt 0:00:00]} c5 {[%emt 0:00:01]} 4. cxd5 {[%emt 0:02:31]} exd5 {[%emt 0:00:10]} 5. Nf3 {[%emt 0:00:19]} Nc6 {[%emt 0:02:46]} 6. Bf4 {[%emt 0:01:47]} Nf6 {[%emt 0:07:46]} 7. e3 {[%emt 0:00:28]} cxd4 {[%emt 0:02:05]} 8. Nxd4 {[%emt 0:00:18]} a6 {[%emt 0:05:38]} 9. Be2 {[%emt 0:00:22]} Bd6 {[%emt 0:02:09]} 10. Bxd6 {[%emt 0:00:19]} Qxd6 {[%emt 0:00:09]} 11. O-O {[%emt 0:00:23]} O-O {[%emt 0:00:15]} 12. Rc1 {[%emt 0:00:52]} Be6 {[%emt 0:03:30]} 13. Bf3 {[%emt 0:02:06]} Rac8 {[%emt 0:05:09]} 14. Qd2 {[%emt 0:01:04]} Bg4 {[%emt 0:03:28]} 15. h3 {[%emt 0:02:14]} Nxd4 {[%emt 0:05:08]} 16. Bxg4 {[%emt 0:02:00]} Ne6 {[%emt 0:01:59]} 17. Bf5 {[%emt 0:03:12]} Rfd8 {[%emt 0:08:04]} 18. Ne2 {[%emt 0:01:29]} g6 {[%emt 0:06:36]} 19. Bb1 {[%emt 0:00:56]} Rxc1 {[%emt 0:02:52]} 20. Rxc1 {[%emt 0:00:08]} Ne4 {[%emt 0:00:21]} 21. Qd1 {[%emt 0:03:55]} Qb6 {[%emt 0:07:45]} 22. b3 {[%emt 0:01:02]} h6 {[%emt 0:10:26]} 23. Bd3 {[%emt 0:17:53]} N6c5 {[%emt 0:04:38]} 24. Nd4 {[%emt 0:03:17]} Nxd3 {[%emt 0:01:14]} 25. Qxd3 {[%emt 0:00:14]} Qf6 {[%emt 0:03:03]} 26. Nf3 {[%emt 0:04:45]} Qb2 {[%emt 0:02:19]} 27. Qc2 {[%emt 0:02:32]} Qxc2 {[%emt 0:02:00]} 28. Rxc2 {[%emt 0:00:06]} Rd7 {[%emt 0:01:29]} 29. Kf1 {[%emt 0:00:15]} Kg7 {[%emt 0:00:07]} 30. Ke2 {[%emt 0:00:38]} Kf6 {[%emt 0:01:11]} 31. Kd3 {[%emt 1:30:53]} Ke6 {[%emt 1:30:39]} 32. Nd4+ {[%emt 0:02:04]} Kd6 {[%emt 0:01:18]} 33. g4 {[%emt 0:01:31]} Rc7 {[%emt 0:00:45]} 34. Rxc7 {[%emt 0:03:49]} Kxc7 {[%emt 0:00:07]} 35. f4 {[%emt 0:01:22]} Kd6 {[%emt 0:02:08]} 36. a3 {[%emt 0:00:51]} Kc5 {[%emt 0:00:49]} 37. Nf3 {[%emt 0:02:06]} Kd6 {[%emt 0:05:06]} 38. Ne5 {[%emt 0:00:28]} Ke6 {[%emt 0:00:26]} 39. h4 {[%emt 0:00:56]} Nf2+ {[%emt 0:03:03]} 40. Kd4 {[%emt 0:02:06]} Ne4 {[%emt 0:00:13]} 41. Nd3 {[%emt 0:01:37]} h5 {[%emt 0:00:00]} 42. f5+ {[%emt 0:00:00]} gxf5 {[%emt 0:00:00]} 43. gxh5 {[%emt 0:00:00]} Ng3 {[%emt 0:00:00]} 44. Nf4+ {[%emt 0:00:00]} Kf6 {[%emt 0:00:00]} 45. h6 {[%emt 0:00:00]} Ne4 {[%emt 0:00:00]} 46. Kxd5 {[%emt 0:00:00]} Nc3+ {[%emt 0:00:00]} 47. Kc4 {[%emt 0:00:00]} Nd1 {[%emt 0:00:00]} 48. Kd4 {[%emt 0:00:00]} Nf2 {[%emt 0:00:00]} 49. h5 {[%emt 0:00:00]} Ng4 {[%emt 0:00:00]} 50. Nd5+ {[%emt 0:00:00]} Ke6 {[%emt 0:00:00]} 51. h7 {[%emt 0:00:00]} 1-0